bitfinex/quotes_SOLUSD_20240824
["timestamp","ask_amount","ask_price","bid_price","bid_amount"]
[1724480826461,51.4608,154.78,154.72,6.08949614]
[1724480826665,51.4608,154.78,154.71,6.08949614]
[1724480826866,51.4608,154.78,154.72,6.08949614]
[1724480827072,51.4608,154.78,154.71,6.08949614]
[1724480827372,51.4608,154.78,154.72,6.08949614]
[1724480827562,51.4608,154.78,154.71,6.08949614]
[1724480827759,51.4608,154.78,154.72,6.08949614]
[1724480828070,51.4608,154.78,154.71,6.08949614]
[1724480828299,51.4608,154.78,154.72,6.08949614]
[1724480828463,51.4608,154.78,154.7,10.27782668]
[1724480828780,51.4608,154.78,154.71,6.08962583]
[1724480828946,51.4608,154.78,154.72,6.08962583]
[1724480829150,51.4608,154.78,154.7,10.27782668]
[1724480829350,51.4608,154.78,154.71,6.08950752]
[1724480829579,51.4608,154.78,154.7,10.27782668]
[1724480829753,51.4608,154.78,154.71,6.08949781]
[1724480829952,51.4608,154.78,154.7,10.27782668]
[1724480830177,51.4608,154.78,154.71,6.08949883]
[1724480830488,51.4608,154.78,154.7,10.27782668]
[1724480830688,51.4608,154.78,154.71,6.08891809]
[1724480830862,51.4608,154.78,154.7,10.27782668]
[1724480831063,50.9664043,154.78,154.71,6.08891827]
[1724480831264,50.9664043,154.78,154.7,10.27782668]
[1724480831463,50.9664043,154.78,154.71,6.08875832]
[1724480831665,50.9664043,154.78,154.7,10.27782668]
[1724480831864,50.9664043,154.78,154.71,6.08875832]
[1724480832056,61.24423098,154.78,154.7,10.27782668]
[1724480832256,61.24423098,154.78,154.71,6.088869]
[1724480832456,61.24423098,154.78,154.7,10.27782668]
[1724480832657,61.24423098,154.78,154.71,6.08891887]
[1724480832875,61.24423098,154.78,154.7,10.27782668]
[1724480833057,61.24423098,154.78,154.71,6.08888838]
[1724480833253,61.24423098,154.78,154.7,10.27782668]
[1724480833254,50.9664043,154.78,154.72,1.29250446]
[1724480834372,50.9664043,154.78,154.71,1.29248446]
[1724480834601,50.9664043,154.78,154.72,6.08886038]
[1724480834888,22.31579,154.79,154.73,1.29248491]
[1724480835055,22.1903,154.79,154.72,10.27782668]
[1724480835255,22.1903,154.79,154.73,1.29239538]
[1724480838499,22.1903,154.79,154.72,10.27782668]
[1724480838699,22.1903,154.79,154.73,1.2923979]
[1724480839297,22.1903,154.79,154.72,10.27782668]
[1724480840692,45.0,154.78,154.72,10.27782668]
[1724480841573,45.0,154.78,154.73,6.0906102]
[1724480841786,45.0,154.78,154.72,10.27782668]
[1724480842185,45.0,154.78,154.73,6.09060607]
[1724480842399,45.0,154.78,154.72,10.27782668]
[1724480842687,45.0,154.78,154.73,6.09108867]
[1724480842887,45.0,154.78,154.72,10.27782668]
[1724480843076,45.0,154.78,154.73,7.38374688]
[1724480843291,45.0,154.78,154.73,1.29240137]
[1724480851770,45.0,154.78,154.72,10.27782668]
[1724480851970,45.0,154.78,154.73,6.08937418]
[1724480852193,45.0,154.78,154.72,10.27782668]
[1724480852395,45.0,154.78,154.73,6.08941789]
[1724480852592,45.0,154.78,154.72,10.27782668]
[1724480853094,45.0,154.78,154.73,12.17884456]
[1724480853095,6.58679,154.77,154.73,12.17884456]
[1724480853270,6.58679,154.77,154.73,6.08933827]
[1724480853271,45.0,154.76,154.73,6.08933827]
[1724480859988,61.73942668,154.76,154.73,6.08933827]
[1724480860391,15.4068,154.75,154.73,6.08933827]
[1724480860598,15.4068,154.75,154.69,6.08799416]
[1724480860900,15.4068,154.75,154.67,10.27782668]
[1724480861084,15.4068,154.75,154.7,6.08801627]
[1724480861583,15.4068,154.75,154.67,10.27782668]
[1724480861785,15.4068,154.75,154.68,6.08801473]
[1724480861987,15.4068,154.75,154.69,6.08801473]
[1724480862186,15.4068,154.75,154.7,6.08801473]
[1724480862386,15.4068,154.75,154.71,6.08801473]
[1724480862593,15.4068,154.75,154.67,10.27782668]
[1724480864594,45.0,154.74,154.67,10.27782668]
[1724480865099,45.0,154.74,154.65,10.27782668]
[1724480865300,55.27782668,154.74,154.65,10.27782668]
[1724480865700,0.12549,154.73,154.65,10.27782668]
[1724480871514,45.0,154.74,154.66,1.2927984]
[1724480875913,6.4631,154.73,154.66,1.2927984]
[1724480876217,55.27782668,154.74,154.65,10.27782668]
[1724480876409,55.27782668,154.74,154.66,1.29280494]
[1724480885705,55.27782668,154.74,154.65,10.27782668]
[1724480885706,15.256,154.72,154.65,10.27782668]
[1724480886316,15.256,154.72,154.63,10.60016678]
[1724480888630,15.256,154.72,154.65,10.27782668]
[1724480894213,15.256,154.72,154.66,1.29293009]
[1724480894520,15.256,154.72,154.65,10.27782668]
[1724480895134,15.256,154.72,154.66,1.29293076]
[1724480897021,15.256,154.72,154.65,10.27782668]
[1724480897213,15.256,154.72,154.66,1.29292955]
[1724480904432,15.256,154.72,154.66,1.29292955]
[1724480907216,15.256,154.72,154.66,10.27782668]
[1724480907522,15.256,154.72,154.67,1.29287595]
[1724480909344,15.256,154.72,154.66,10.27782668]
[1724480911241,15.256,154.72,154.67,1.29284579]
[1724480913031,15.256,154.72,154.66,10.27782668]
[1724480913233,15.256,154.72,154.67,1.29282844]
[1724480916339,15.256,154.72,154.63,1.615173]
[1724480916549,15.256,154.72,154.64,0.12549]
[1724480916724,15.256,154.72,154.66,10.27782668]
[1724480919259,15.256,154.72,154.64,0.12549]
[1724480919441,15.256,154.72,154.65,10.27782668]
[1724480920147,6.3512,154.71,154.63,10.60016678]
[1724480920535,6.3512,154.71,154.63,0.3223401]
[1724480920878,6.3512,154.71,154.63,10.60016678]
[1724480921719,6.3512,154.71,154.64,1.29298994]
[1724480921924,6.3512,154.71,154.65,11.57081407]
[1724480922478,6.3512,154.71,154.65,1.29298739]
[1724480922649,6.3512,154.71,154.65,11.57081407]
[1724480922850,6.3512,154.71,154.66,6.1033309]
[1724480923164,6.3512,154.71,154.67,6.1033309]
[1724480923361,6.3512,154.71,154.68,6.1033309]
[1724480923557,6.3512,154.71,154.69,6.1033309]
[1724480923766,6.3512,154.71,154.66,1.29299078]
[1724480924072,6.3512,154.71,154.67,6.10383954]
[1724480924275,6.3512,154.71,154.66,1.29299078]
[1724480924769,6.3512,154.71,154.66,1.29299328]
[1724480928357,6.3512,154.71,154.63,0.3223401]
[1724480928662,6.3512,154.71,154.63,10.60016678]
[1724480928861,6.3512,154.71,154.65,10.27782668]
[1724480929081,6.3512,154.71,154.66,1.29294234]
[1724480933195,6.3512,154.71,154.67,10.27782668]
[1724480933488,15.256,154.72,154.67,10.27782668]
[1724480934264,15.256,154.72,154.68,1.29272755]
[1724480935201,15.256,154.72,154.69,10.27782668]
[1724480935491,6.3512,154.75,154.7,1.29264794]
[1724480935871,6.3512,154.75,154.71,10.27782668]
[1724480936487,6.3512,154.75,154.72,1.29250221]
[1724480936693,15.8133,154.76,154.72,1.29250221]
[1724480938087,15.8133,154.76,154.71,10.27782668]
[1724480941425,15.8133,154.76,154.72,1.29246412]
[1724480941603,15.8133,154.76,154.71,10.27782668]
[1724480942681,15.8133,154.76,154.66,16.1502]
[1724480942881,15.8133,154.76,154.69,10.27782668]
[1724480944407,15.8133,154.76,154.67,0.12549]
[1724480944611,15.8133,154.76,154.63,6.3568401]
[1724480944767,51.0125,154.75,154.67,10.27782668]
[1724480945203,57.4746,154.75,154.63,6.3568401]
[1724480945395,21.5646,154.74,154.65,10.27782668]
[1724480945579,61.86621668,154.73,154.64,10.27782668]
[1724480945772,0.12549,154.72,154.64,10.27782668]
[1724480946286,0.12549,154.72,154.63,0.3223401]
[1724480946604,15.1022,154.71,154.63,10.60016678]
[1724480947669,15.1022,154.71,154.64,1.29309292]
[1724480947875,15.1022,154.71,154.65,11.57081249]
[1724480952296,15.1022,154.71,154.65,10.27782668]
[1724480954396,15.1022,154.71,154.66,1.29291516]
[1724480955117,15.1022,154.71,154.67,11.57070423]
[1724480955601,15.1022,154.71,154.67,10.27782668]
[1724480956380,15.1022,154.71,154.63,0.3223401]
[1724480956381,6.0125,154.7,154.63,0.3223401]
[1724480964681,6.0125,154.7,154.64,10.27782668]
[1724480966397,16.29032668,154.7,154.63,0.3223401]
[1724480971587,6.0125,154.7,154.63,0.3223401]
[1724480975495,12.4766,154.7,154.63,0.3223401]
[1724480975722,6.0125,154.7,154.63,0.3223401]
[1724480992700,16.0639,154.68,154.63,0.3223401]
[1724480994232,22.5289,154.68,154.63,0.3223401]
[1724480999745,16.0639,154.68,154.63,0.3223401]
[1724481001542,6.1297,154.67,154.63,0.3223401]
[1724481001773,12.5951,154.67,154.63,0.3223401]
[1724481001912,6.4658,154.66,154.63,0.3223401]
[1724481002137,16.3999,154.65,154.63,0.3223401]
[1724481005336,16.3999,154.63,154.54,6.75647361]
[1724481005635,16.87081668,154.62,154.53,10.27782668]
[1724481006517,10.40331668,154.62,154.53,10.27782668]
[1724481007234,0.12549,154.62,154.53,10.27782668]
[1724481007418,45.12549,154.62,154.53,10.27782668]
[1724481008515,45.12549,154.62,154.49,6.474]
[1724481008825,45.12549,154.62,154.54,10.27782668]
[1724481009737,45.12549,154.62,154.56,10.27782668]
[1724481010552,16.3999,154.63,154.56,10.27782668]
[1724481014437,22.867,154.63,154.56,10.27782668]
[1724481014737,45.12549,154.62,154.56,10.27782668]
[1724481015241,22.867,154.63,154.56,10.27782668]
[1724481016055,6.4675,154.62,154.51,6.493]
[1724481016359,45.0,154.61,154.54,10.27782668]
[1724481016855,45.0,154.61,154.51,6.493]
[1724481017050,45.0,154.61,154.54,10.27782668]
[1724481017661,45.0,154.61,154.53,10.27782668]
[1724481018854,61.74572668,154.61,154.52,10.27782668]
[1724481019155,0.12549,154.6,154.52,10.27782668]
[1724481020885,22.2643,154.59,154.52,10.27782668]
[1724481027154,22.2643,154.59,154.48,0.8385691]
[1724481027365,45.12549,154.58,154.5,10.27782668]
[1724481028270,45.12549,154.58,154.48,0.8385691]
[1724481028470,45.12549,154.58,154.49,10.27782668]
[1724481029149,51.59489,154.58,154.49,10.27782668]
[1724481029359,16.0566,154.57,154.49,10.27782668]
[1724481029556,45.12549,154.56,154.49,10.27782668]
[1724481030885,51.59549,154.56,154.48,11.11639578]
[1724481032176,51.59549,154.56,154.48,0.8385691]
[1724481032177,22.2643,154.55,154.48,0.8385691]
[1724481032383,45.0,154.54,154.48,0.8385691]
[1724481033962,0.12549,154.53,154.48,0.8385691]
[1724481035272,22.2643,154.55,154.48,0.8385691]
[1724481035477,45.12549,154.54,154.48,0.8385691]
[1724481036084,16.2779,154.53,154.48,0.8385691]
[1724481036388,20.0,154.52,154.48,0.8385691]
[1724481036885,16.2779,154.53,154.48,0.8385691]
[1724481037180,16.2779,154.53,154.48,11.11639578]
[1724481037968,6.2077,154.55,154.5,10.27782668]
[1724481038280,16.2779,154.57,154.5,10.27782668]
[1724481038969,16.2779,154.57,154.52,10.27782668]
[1724481041075,12.7559,154.59,154.52,10.27782668]
[1724481041389,6.2871,154.59,154.54,10.27782668]
[1724481042467,6.2871,154.59,154.52,10.27782668]
[1724481045386,15.1011,154.61,154.52,10.27782668]
[1724481045687,20.0,154.6,154.54,10.27782668]
[1724481046067,6.75828761,154.64,154.58,10.27782668]
[1724481046266,15.1011,154.66,154.58,10.27782668]
[1724481047088,25.37892668,154.66,154.56,10.27782668]
[1724481047265,6.4666,154.64,154.56,10.27782668]
[1724481047470,20.0,154.63,154.56,10.27782668]
[1724481048371,20.0,154.65,154.56,10.27782668]
[1724481048674,45.25098,154.64,154.56,10.27782668]
[1724481049012,20.0,154.63,154.56,10.27782668]
[1724481051997,10.27782668,154.57,154.48,0.8385691]
[1724481053696,71.4699,154.56,154.48,0.8385691]
[1724481053900,65.0,154.56,154.48,0.8385691]
[1724481054072,0.12549,154.55,154.48,0.8385691]
[1724481055099,10.52880668,154.55,154.48,0.8385691]
[1724481055283,71.4708,154.54,154.48,0.8385691]
[1724481055875,65.0,154.54,154.48,0.8385691]
[1724481056091,6.4716,154.52,154.48,0.8385691]
[1724481056281,65.0,154.51,154.48,0.8385691]
[1724481056695,20.0,154.51,154.48,0.8385691]
[1724481057092,20.0,154.52,154.48,0.8385691]
[1724481057396,20.0,154.53,154.48,0.8385691]
[1724481058586,20.0,154.54,154.48,0.8385691]
[1724481059300,20.0,154.56,154.48,2.13305529]
[1724481059502,45.12549,154.55,154.48,2.13305529]
[1724481059688,20.0,154.54,154.48,2.13305529]
[1724481060077,20.0,154.54,154.48,0.8385691]
[1724481064608,55.27782668,154.53,154.48,0.8385691]
[1724481064803,20.0,154.52,154.48,0.8385691]
[1724481066581,6.4708,154.54,154.48,0.8385691]
[1724481066803,6.4704,154.55,154.48,0.8385691]
[1724481067031,20.0,154.54,154.48,0.8385691]
[1724481069491,26.471,154.54,154.48,0.8385691]
[1724481069705,45.0,154.53,154.48,0.8385691]
[1724481070608,51.4713,154.53,154.48,0.8385691]
[1724481070808,20.0,154.52,154.48,0.8385691]
[1724481074096,20.0,154.53,154.48,0.8385691]
[1724481076291,6.4707,154.55,154.48,0.8385691]
[1724481076491,26.4708,154.54,154.48,0.8385691]
[1724481077115,20.0,154.54,154.48,0.8385691]
[1724481078616,20.0,154.54,154.48,33.81079578]
[1724481078915,20.0,154.55,154.48,33.81079578]
[1724481079617,6.4696,154.57,154.49,1.29435297]
[1724481080618,6.4696,154.57,154.48,33.81079578]
[1724481080804,6.4696,154.57,154.49,1.29432051]
[1724481081014,6.4696,154.57,154.48,33.81079578]
[1724481081201,20.0,154.56,154.48,23.5329691]
[1724481081400,20.0,154.56,154.48,33.81079578]
[1724481081603,6.4696,154.57,154.49,1.29432133]
[1724481081802,20.0,154.56,154.49,1.29432133]
[1724481083124,20.0,154.56,154.48,33.81079578]
[1724481087120,20.0,154.57,154.48,33.81079578]
[1724481090506,26.4696,154.57,154.48,23.5329691]
[1724481090714,36.74742668,154.57,154.48,23.5329691]
[1724481091757,45.0,154.56,154.48,23.5329691]
[1724481092254,20.0,154.55,154.48,23.5329691]
[1724481095846,30.27782668,154.55,154.48,23.5329691]
[1724481097325,36.74822668,154.55,154.48,23.5329691]
[1724481100219,45.0,154.54,154.48,23.5329691]
[1724481102129,36.74822668,154.55,154.48,23.5329691]
[1724481103055,26.4704,154.55,154.48,23.5329691]
[1724481113871,20.0,154.55,154.48,23.5329691]
[1724481114253,20.0,154.55,154.49,6.09724908]
[1724481115176,26.4704,154.55,154.48,23.5329691]
[1724481117976,26.4704,154.55,154.49,6.09723802]
[1724481118480,26.4704,154.55,154.48,23.5329691]
[1724481120685,45.0,154.54,154.48,23.5329691]
[1724481122573,20.12549,154.53,154.48,23.5329691]
[1724481122785,51.4717,154.52,154.48,23.5329691]
[1724481122957,51.4717,154.52,154.48,0.8385691]
[1724481122958,6.4722,154.51,154.48,0.8385691]
[1724481123160,16.75072668,154.49,154.48,0.8385691]
[1724481123381,36.75072668,154.49,154.48,0.8385691]
[1724481123692,81.75072668,154.49,154.48,0.8385691]
[1724481124380,82.00170668,154.49,154.48,0.8385691]
[1724481127782,71.72388,154.49,154.48,0.8385691]
[1724481127987,82.00170668,154.49,154.48,0.8385691]
[1724481128858,26.4729,154.49,154.48,0.8385691]
[1724481130678,26.59839,154.49,154.48,0.8385691]
[1724481130860,71.59839,154.49,154.48,0.8385691]
[1724481131574,65.0,154.49,154.48,0.8385691]
[1724481131763,20.0,154.49,154.48,0.8385691]
[1724481142299,6.4716,154.53,154.48,0.8385691]
[1724481142601,6.75009853,154.55,154.49,22.6348]
[1724481142968,6.4699,154.56,154.49,22.6348]
[1724481143168,10.27782668,154.57,154.49,22.6348]
[1724481143386,19.43,154.59,154.49,32.91262668]
[1724481143634,19.43,154.59,154.49,34.20704076]
[1724481144001,25.72392668,154.6,154.51,10.27782668]
[1724481144002,20.0,154.58,154.51,10.27782668]
[1724481144186,20.0,154.59,154.51,10.27782668]
[1724481145506,20.0,154.6,154.52,1.2941787]
[1724481146130,10.27782668,154.61,154.52,1.2941787]
[1724481147908,20.0,154.59,154.51,10.27782668]
[1724481148927,6.1494,154.67,154.55,10.27782668]
[1724481149135,10.27782668,154.65,154.55,1.29385586]
[1724481149428,6.4668,154.64,154.54,22.6348]
[1724481149634,6.4668,154.64,154.54,32.91262668]
[1724481150200,6.1494,154.67,154.54,32.91262668]
[1724481150436,10.27782668,154.65,154.55,0.12549]
[1724481150638,20.0,154.64,154.55,0.12549]
[1724481150936,6.4657,154.67,154.56,10.27782668]
[1724481151106,16.74352668,154.67,154.56,10.27782668]
[1724481152204,65.12549,154.66,154.56,10.27782668]
[1724481152828,75.40331668,154.66,154.56,10.27782668]
[1724481154505,65.12549,154.66,154.56,10.27782668]
[1724481154734,75.40331668,154.66,154.56,10.27782668]
[1724481156208,65.0,154.66,154.57,23.92845208]
[1724481156408,65.0,154.66,154.58,11.57137329]
[1724481156623,20.0,154.66,154.58,11.57137329]
[1724481156826,15.4461,154.72,154.6,10.27782668]
[1724481157038,10.27782668,154.7,154.62,16.4254]
[1724481157616,15.4461,154.72,154.62,16.4254]
[1724481157923,10.27782668,154.7,154.62,16.4254]
[1724481158316,20.0,154.69,154.62,16.4254]
[1724481161615,16.74282668,154.68,154.62,16.4254]
[1724481161829,20.0,154.69,154.62,16.4254]
[1724481162138,10.27782668,154.65,154.62,16.4254]
[1724481163933,45.0,154.68,154.62,16.4254]
[1724481164132,30.27782668,154.67,154.62,16.4254]
[1724481165345,20.0,154.67,154.62,16.4254]
[1724481165516,30.27782668,154.67,154.62,16.4254]
[1724481165942,20.0,154.67,154.62,16.4254]
[1724481166248,10.27782668,154.66,154.62,16.4254]
[1724481167815,20.0,154.67,154.62,16.4254]
[1724481168038,30.27782668,154.67,154.62,16.4254]
[1724481168431,10.27782668,154.67,154.62,16.4254]
[1724481177249,45.0,154.68,154.62,16.4254]
[1724481179351,45.0,154.69,154.62,16.4254]
[1724481179529,20.0,154.68,154.62,16.4254]
[1724481182862,45.0,154.67,154.62,16.4254]
[1724481188047,26.59129,154.66,154.61,6.2094]
[1724481188580,16.74412668,154.65,154.58,15.8099]
[1724481188878,65.0,154.64,154.58,15.8099]
[1724481189055,71.4667,154.64,154.58,15.8099]
[1724481189255,71.4667,154.64,154.57,6.5477]
[1724481189256,10.27782668,154.63,154.57,6.5477]
[1724481189440,6.59329,154.62,154.57,6.5477]
[1724481189644,20.0,154.61,154.57,6.5477]
[1724481190041,30.27782668,154.61,154.55,6.10298375]
[1724481190243,10.27782668,154.59,154.54,15.8099]
[1724481190446,65.12549,154.58,154.54,15.8099]
[1724481190954,20.0,154.58,154.54,15.8099]
[1724481191278,20.0,154.6,154.54,15.8099]
[1724481191568,45.0,154.59,154.54,15.8099]
[1724481191778,20.0,154.58,154.54,15.8099]
[1724481196355,10.27782668,154.61,154.54,15.8099]
[1724481197776,20.0,154.6,154.54,15.8099]
[1724481205288,20.0,154.62,154.54,15.8099]
[1724481205495,45.12549,154.61,154.54,15.8099]
[1724481205664,20.0,154.6,154.54,15.8099]
[1724481212074,26.4684,154.6,154.54,15.8099]
[1724481212274,20.0,154.6,154.54,15.8099]
[1724481216491,26.4683,154.6,154.54,15.8099]
[1724481216800,45.12549,154.59,154.54,15.8099]
[1724481219701,55.40331668,154.59,154.54,15.8099]
[1724481220002,55.40331668,154.59,154.51,6.5477]
[1724481227281,74.83331668,154.59,154.51,6.5477]
[1724481227499,6.4698,154.57,154.51,6.5477]
[1724481227815,45.0,154.56,154.51,6.5477]
[1724481240226,0.12549,154.58,154.51,6.5477]
[1724481240404,30.40331668,154.58,154.51,6.5477]
[1724481240604,45.12549,154.57,154.51,6.5477]
[1724481240807,20.0,154.56,154.51,6.5477]
[1724481248433,20.0,154.57,154.51,6.5477]
[1724481249314,19.45,154.6,154.51,6.5477]
[1724481249638,65.12549,154.59,154.51,12.64768952]
[1724481250618,65.0,154.59,154.51,22.9255162]
[1724481250912,65.0,154.59,154.52,7.39485697]
[1724481251842,20.0,154.59,154.52,6.10066201]
[1724481253145,30.27782668,154.59,154.51,12.64836201]
[1724481253316,6.4695,154.58,154.51,12.64836201]
[1724481253510,20.0,154.57,154.51,6.5477]
[1724481253818,30.27782668,154.57,154.51,6.5477]
[1724481256441,45.12549,154.56,154.51,6.5477]
[1724481258017,19.45,154.62,154.54,10.27782668]
[1724481258223,6.4666,154.64,154.56,10.27782668]
[1724481258531,6.4677,154.62,154.55,6.1411]
[1724481258745,10.27782668,154.61,154.55,6.1411]
[1724481259709,65.0,154.6,154.55,6.1411]
[1724481260126,20.0,154.6,154.55,6.1411]
[1724481260345,20.0,154.62,154.55,6.1411]
[1724481262247,45.0,154.61,154.55,6.1411]
[1724481262448,20.0,154.6,154.55,6.1411]
[1724481264561,45.0,154.61,154.55,6.1411]
[1724481264728,20.0,154.6,154.55,6.1411]
[1724481264929,20.0,154.61,154.55,6.1411]
[1724481274064,30.27782668,154.61,154.55,6.1411]
[1724481275145,20.0,154.61,154.55,6.1411]
[1724481281253,45.0,154.62,154.55,6.1411]
[1724481281452,20.0,154.61,154.55,6.1411]
[1724481282861,20.0,154.62,154.55,6.1411]
[1724481285587,20.0,154.62,154.55,17.71280832]
[1724481285764,30.27782668,154.65,154.55,17.71280832]
[1724481285964,45.25098,154.64,154.55,17.71280832]
[1724481286158,20.0,154.63,154.55,17.71280832]
[1724481288981,20.0,154.63,154.55,16.41892668]
[1724481289377,20.0,154.63,154.56,1.29377774]
[1724481289970,15.3461,154.7,154.57,15.6739]
[1724481290168,20.0,154.67,154.57,15.6739]
[1724481290365,10.27782668,154.65,154.57,15.6739]
[1724481290564,20.0,154.64,154.57,15.6739]
[1724481291379,20.0,154.64,154.58,1.29364413]
[1724481291563,20.0,154.66,154.58,1.29364413]
[1724481292171,20.0,154.66,154.59,7.61654402]
[1724481292467,39.45,154.68,154.59,16.60072668]
[1724481292667,45.915,154.68,154.59,16.60072668]
[1724481293192,39.45,154.68,154.59,16.60072668]
[1724481293493,10.27782668,154.67,154.59,6.3229]
[1724481293696,19.45,154.64,154.59,6.3229]
[1724481293865,20.0,154.63,154.57,15.6739]
[1724481294070,30.27782668,154.63,154.57,15.6739]
[1724481295381,45.12549,154.62,154.57,15.6739]
[1724481296063,30.27782668,154.63,154.57,15.6739]
[1724481296395,10.27782668,154.61,154.57,15.6739]
[1724481296785,20.0,154.63,154.57,15.6739]
[1724481296970,10.27782668,154.66,154.57,15.6739]
[1724481297288,10.27782668,154.64,154.57,15.6739]
[1724481297498,20.0,154.63,154.57,15.6739]
[1724481299171,45.12549,154.62,154.57,15.6739]
[1724481300884,20.0,154.63,154.57,15.6739]
[1724481303510,10.27782668,154.64,154.57,15.6739]
[1724481303707,20.0,154.63,154.57,15.6739]
[1724481304388,30.40331668,154.65,154.57,15.6739]
[1724481304701,45.12549,154.64,154.57,15.6739]
[1724481304887,20.0,154.63,154.57,15.6739]
[1724481305504,20.0,154.64,154.57,15.6739]
[1724481305699,20.0,154.65,154.57,15.6739]
[1724481305883,20.0,154.65,154.57,25.95172668]
[1724481306084,16.74322668,154.67,154.58,7.30014169]
[1724481306404,10.27782668,154.67,154.59,6.10508737]
[1724481306787,10.27782668,154.67,154.58,12.11168737]
[1724481306992,10.27782668,154.61,154.58,6.10508737]
[1724481307294,10.27782668,154.61,154.57,15.6739]
[1724481307884,6.4676,154.62,154.57,15.6739]
[1724481308207,30.27782668,154.61,154.57,15.6739]
[1724481309017,20.0,154.61,154.57,15.6739]
[1724481309186,10.27782668,154.62,154.57,15.6739]
[1724481309382,20.0,154.61,154.57,15.6739]
[1724481311811,20.0,154.61,154.54,6.0066]
[1724481312301,10.27782668,154.6,154.54,6.0066]
[1724481314011,30.27782668,154.61,154.54,12.1073253]
[1724481314181,30.27782668,154.61,154.54,12.10841567]
[1724481314379,10.27782668,154.61,154.54,12.10841567]
[1724481314686,10.27782668,154.61,154.54,6.0066]
[1724481315105,10.27782668,154.61,154.54,12.10807055]
[1724481315502,10.27782668,154.61,154.54,6.0066]
[1724481315707,10.27782668,154.61,154.54,12.10818541]
[1724481316086,10.27782668,154.61,154.54,12.10812306]
[1724481317521,10.27782668,154.61,154.54,12.10818541]
[1724481320822,10.27782668,154.61,154.54,12.10815424]
[1724481323916,10.27782668,154.61,154.54,6.0066]
[1724481324091,10.27782668,154.61,154.54,12.10815424]
[1724481324288,10.27782668,154.61,154.54,12.10818541]
[1724481327031,10.27782668,154.61,154.54,6.0066]
[1724481327325,10.27782668,154.61,154.54,12.10843034]
[1724481328206,65.0,154.6,154.54,6.0066]
[1724481328409,10.27782668,154.59,154.54,6.0066]
[1724481328613,10.27782668,154.59,154.53,15.1128]
[1724481328926,10.27782668,154.59,154.5,6.2494]
[1724481328927,20.0,154.58,154.5,6.2494]
[1724481329225,10.27782668,154.57,154.5,12.34696006]
[1724481330425,10.27782668,154.57,154.5,6.2494]
[1724481334229,26.4691,154.58,154.5,6.2494]
[1724481334411,20.0,154.58,154.5,16.52722668]
[1724481341738,20.0,154.58,154.5,6.2494]
[1724481341939,10.40331668,154.57,154.5,6.2494]
[1724481343312,10.27782668,154.57,154.5,6.2494]
[1724481344143,26.4693,154.58,154.5,6.2494]
[1724481344144,20.0,154.58,154.5,16.52722668]
[1724481355657,20.0,154.58,154.51,6.09969295]
[1724481356258,20.0,154.58,154.5,16.52722668]
[1724481356743,20.0,154.58,154.5,6.2494]
[1724481356931,26.4692,154.58,154.5,12.34878563]
[1724481357247,0.12549,154.57,154.5,12.34878563]
[1724481358848,20.0,154.58,154.5,12.34878563]
[1724481359148,20.0,154.58,154.51,10.27782668]
[1724481359444,20.0,154.58,154.51,16.37721231]
[1724481360256,20.0,154.58,154.52,1.2941789]
[1724481360557,20.0,154.59,154.52,1.2941789]
[1724481361026,20.0,154.59,154.53,15.0166]
[1724481362156,20.0,154.6,154.53,15.0166]
[1724481365130,19.45,154.59,154.53,15.0166]
[1724481365462,20.0,154.58,154.53,15.0166]
[1724481365757,20.0,154.6,154.53,15.0166]
[1724481368927,20.0,154.6,154.53,16.3106213]
[1724481369132,20.0,154.6,154.54,6.09833784]
[1724481369356,20.0,154.6,154.53,21.0783]
[1724481369562,20.0,154.6,154.54,6.09895294]
[1724481369947,20.0,154.6,154.54,16.37677962]
[1724481370137,16.74452668,154.64,154.54,16.37677962]
[1724481370138,20.0,154.63,154.54,16.37677962]
[1724481371034,36.74492668,154.63,154.53,21.0783]
[1724481371276,36.74492668,154.63,154.54,6.09849491]
[1724481371481,36.74492668,154.63,154.54,12.19746671]